[Event "33rd ECCC Open 2017"]
[Site "Antalya"]
[Date "2017.10.12"]
[Round "5"]
[White "Ererdem, Gani Eren"]
[Black "Atakisi, Umut"]
[Result "1/2-1/2"]
[ECO "E04"]
[WhiteElo "2136"]
[BlackElo "2361"]
[Annotator "NA"]
[PlyCount "80"]
[EventType "team-tourn"]
[EventCountry "TUR"]
[SourceTitle "playchess.com"]
[Source "ChessBase"]
[SourceQuality "1"]
[WhiteTeam "Karaman"]
[BlackTeam "Besiktas"]
[TimeControl "40/5400+30:1800+30"]

1. d4 d5 {[%emt 0:05:00]} 2. c4 {[%emt 0:01:00]} e6 {[%emt 0:00:30]} 3. Nf3 {[%emt 0:00:30]} Nf6 {[%emt 0:00:00]} 4. g3 {[%emt 0:00:00]} dxc4 {[%emt 0:00:00]} 5. Bg2 {[%emt 0:01:00]} a6 {[%emt 0:00:30]} 6. O-O {[%emt 0:05:30]} Nc6 {[%emt 0:00:30]} 7. e3 {[%emt 0:10:30]} Rb8 {[%emt 0:00:30]} 8. Nfd2 {[%emt 0:05:30]} e5 {[%emt 0:00:30]} 9. Nxc4 {[%emt 0:08:30]} (9. Bxc6+ $1 $14 bxc6 10. dxe5) 9... exd4 {[%emt 0:00:30]} 10. exd4 {[%emt 0:00:30]} Nxd4 {[%emt 0:23:30]} 11. Be3 $17 {[%emt 0:13:30]} (11. Re1+ $11 {bleibt in der Remisbreite.} Be6 12. Nc3) 11... Nc6 {[%emt 0:19:30]} 12. Bxc6+ {[%emt 0:19:30]} bxc6 {[%emt 0:00:30]} 13. Qxd8+ {[%emt 0:01:30]} Kxd8 {[%emt 0:00:30]} 14. Ne5 {[%emt 0:00:00]} Ke8 {[%emt 0:00:30]} 15. Nxc6 {[%emt 0:01:00]} Rxb2 {[%emt 0:02:30]} 16. Nc3 {[%emt 0:12:18]} Be6 {[%emt 0:16:30]} 17. Rfd1 {[%emt 0:10:44]} Bd6 {[%emt 0:01:30]} 18. Na4 {[%emt 0:00:43]} Rxa2 {[%emt 0:09:40]} 19. Rab1 {[%emt 0:00:51]} Bc8 {[%emt 0:09:51]} 20. Nc5 {[%emt 0:02:03]} Nd7 {[%emt 0:01:48]} 21. Ne4 {[%emt 0:00:37]} Rc2 {[%emt 0:01:02]} 22. Nxd6+ {[%emt 0:00:30]} cxd6 {[%emt 0:00:30]} 23. Rxd6 {[%emt 0:01:12]} f6 {[%emt 0:00:52]} 24. Na7 {[%emt 0:01:55]} Ke7 {[%emt 0:01:43]} 25. Nxc8+ {[%emt 0:00:38]} Rhxc8 {[%emt 0:00:30]} 26. Rxa6 {[%emt 0:00:00]} R2c6 {[%emt 0:00:15]} 27. Rxc6 {[%emt 0:00:12]} Rxc6 {[%emt 0:00:30]} 28. Rb7 {[%emt 0:00:30]} g5 {[%emt 0:00:30]} 29. h3 {[%emt 0:00:30]} h5 {[%emt 0:00:30]} 30. Rb4 {[%emt 0:00:30]} Ke6 {[%emt 0:00:30]} 31. Kg2 {[%emt 0:00:30]} Ne5 {[%emt 0:00:00]} 32. Rb6 {[%emt 0:00:25]} Rxb6 {[%emt 0:00:14]} 33. Bxb6 {[%emt 0:00:30]} g4 {[%emt 0:00:06]} 34. hxg4 {[%emt 0:00:16]} hxg4 {[%emt 0:00:06]} 35. Kf1 {[%emt 0:01:45]} Kd5 {[%emt 0:00:05]} 36. Ke2 {[%emt 0:00:17]} Ke4 {[%emt 0:00:14]} 37. Be3 {[%emt 0:00:00]} Nc6 {[%emt 0:00:18]} 38. Bb6 {[%emt 0:00:58]} Nb4 {[%emt 0:01:44]} 39. Ba5 {[%emt 0:01:23]} Nd5 {[%emt 0:01:14]} 40. Bd2 {[%emt 0:00:00]} Ke5 {[%emt 0:30:33]} 1/2-1/2

[Event "33rd ECCC Open 2017"]
[Site "Antalya"]
[Date "2017.10.12"]
[Round "5"]
[White "Ajvazi, Ramadan"]
[Black "Thee, Bernd"]
[Result "1-0"]
[ECO "B33"]
[WhiteElo "2109"]
[BlackElo "1907"]
[Annotator "NA"]
[PlyCount "33"]
[EventType "team-tourn"]
[EventCountry "TUR"]
[SourceTitle "playchess.com"]
[Source "ChessBase"]
[SourceQuality "1"]
[WhiteTeam "Dardania"]
[BlackTeam "Adare"]
[TimeControl "40/5400+30:1800+30"]

1. e4 {[%emt 0:00:30]} c5 {[%emt 0:01:00]} 2. Nf3 {[%emt 0:00:30]} Nc6 {[%emt 0:00:30]} 3. d4 {[%emt 0:00:30]} cxd4 {[%emt 0:00:30]} 4. Nxd4 {[%emt 0:00:30]} Nf6 {[%emt 0:00:30]} 5. Nc3 {[%emt 0:00:30]} e5 {[%emt 0:00:30]} 6. Ndb5 {[%emt 0:00:30]} d6 {[%emt 0:00:30]} 7. Bg5 {[%emt 0:00:30]} a6 {[%emt 0:00:30]} 8. Na3 {[%emt 0:00:30]} b5 {[%emt 0:00:30]} 9. Bxf6 {[%emt 0:00:30]} gxf6 {[%emt 0:00:30]} 10. Nd5 {[%emt 0:00:30]} Bg7 {[%emt 0:00:00]} 11. c3 {[%emt 0:00:00]} f5 {[%emt 0:00:00]} 12. Bd3 {[%emt 0:02:00]} Be6 {[%emt 0:00:30]} 13. Qh5 {[%emt 0:07:30]} Bxd5 {[%emt 0:16:30]} 14. exd5 {[%emt 0:02:30]} Ne7 {[%emt 0:00:00]} 15. Bxf5 {[%emt 0:03:30]} Rb8 $16 {[%emt 0:09:00]} (15... Nxf5 $142 16. Qxf5 Qd7) 16. Nc2 {[%emt 0:10:30]} Nxd5 {[%emt 0:13:30]} 17. Be6 {[%emt 0:01:30]} 1-0

[Event "33rd ECCC Open 2017"]
[Site "Antalya"]
[Date "2017.10.12"]
[Round "5"]
[White "Georgakopoulos, Nikolaos K"]
[Black "Jackson, Carl"]
[Result "1-0"]
[ECO "B01"]
[WhiteElo "2086"]
[BlackElo "2149"]
[Annotator "NA"]
[PlyCount "55"]
[EventType "team-tourn"]
[EventCountry "TUR"]
[SourceTitle "playchess.com"]
[Source "ChessBase"]
[SourceQuality "1"]
[WhiteTeam "Chania"]
[BlackTeam "Gonzaga"]
[TimeControl "40/5400+30:1800+30"]

1. e4 {[%emt 0:00:30]} d5 {[%emt 0:01:00]} 2. exd5 {[%emt 0:00:30]} Nf6 {[%emt 0:00:30]} 3. d4 {[%emt 0:09:30]} Bg4 {[%emt 0:03:30]} 4. Nf3 {[%emt 0:01:30]} Qxd5 {[%emt 0:00:00]} 5. Be2 {[%emt 0:03:30]} Nc6 {[%emt 0:01:00]} 6. Be3 {[%emt 0:07:30]} O-O-O {[%emt 0:00:30]} 7. Nbd2 {[%emt 0:02:30] B01: Scandinavian Defence} Qf5 {[%emt 0:03:30] LiveBook: 9 Games} 8. c4 {[%emt 0:10:30]} (8. O-O $14) 8... e5 {[%emt 0:12:30]} 9. d5 {[%emt 0:05:30]} Nb4 {[%emt 0:03:30]} 10. O-O {[%emt 0:02:30]} Nc2 {[%emt 0:02:30]} 11. Rc1 {[%emt 0:06:30]} (11. Nh4 Nxe3 12. fxe3 Qg5 13. Bxg4+ Nxg4 14. Nf5 Nxe3 15. Nxe3 {1-0 (26) Istratescu,A (2627)-Horvath,J (2508) Aschach 2014}) 11... Nxe3 {[%emt 0:01:30]} 12. fxe3 {[%emt 0:00:00]} Bc5 {[%emt 0:05:30]} 13. Rc3 {[%emt 0:03:00]} e4 $146 {[%emt 0:11:30]} 14. Nd4 {[%emt 0:04:30]} Bxe2 {[%emt 0:02:30]} 15. Qxe2 {[%emt 0:03:30]} Qg6 {[%emt 0:02:30]} 16. N2b3 {[%emt 0:08:30]} Bb4 {[%emt 0:01:30]} 17. Rc2 {[%emt 0:00:30]} Qg4 {[%emt 0:04:30]} 18. Nf5 {[%emt 0:10:45]} Bf8 $18 {[%emt 0:06:30]} (18... Qxe2 $14 19. Rxe2 Bf8) 19. Qe1 {[%emt 0:01:45]} Rd7 {[%emt 0:15:45]} 20. Qa5 {[%emt 0:01:32]} Kb8 {[%emt 0:02:54]} 21. Nbd4 {[%emt 0:00:40]} g6 {[%emt 0:06:44]} 22. Ng3 {[%emt 0:00:26]} Qg5 {[%emt 0:02:07]} 23. Rc3 {[%emt 0:00:18]} c5 {[%emt 0:05:00]} 24. Nc6+ {[%emt 0:04:22]} bxc6 {[%emt 0:00:20]} 25. dxc6 {[%emt 0:02:16]} Rc7 {[%emt 0:00:36]} 26. Qa6 {[%emt 0:01:22]} Bd6 {[%emt 0:01:26]} 27. Rb3+ {[%emt 0:00:07]} Ka8 {[%emt 0:00:16]} 28. Rb7 {[%emt 0:00:02]} 1-0

[Event "33rd ECCC Open 2017"]
[Site "Antalya"]
[Date "2017.10.12"]
[Round "5"]
[White "Asllani, Ibrahim"]
[Black "Palsson, Halldor"]
[Result "1/2-1/2"]
[ECO "E19"]
[WhiteElo "2072"]
[BlackElo "2019"]
[Annotator "NA"]
[PlyCount "80"]
[EventType "team-tourn"]
[EventCountry "TUR"]
[SourceTitle "playchess.com"]
[Source "ChessBase"]
[SourceQuality "1"]
[WhiteTeam "Hasan Pristina"]
[BlackTeam "Viking"]
[TimeControl "40/5400+30:1800+30"]

1. d4 {[%emt 0:00:30]} Nf6 {[%emt 0:01:00]} 2. c4 {[%emt 0:00:30]} e6 {[%emt 0:00:30]} 3. Nf3 {[%emt 0:00:30]} b6 {[%emt 0:00:30]} 4. g3 {[%emt 0:00:30]} Bb7 {[%emt 0:00:30]} 5. Bg2 {[%emt 0:00:30]} Be7 {[%emt 0:00:30]} 6. Nc3 {[%emt 0:00:30]} O-O {[%emt 0:00:30]} 7. O-O {[%emt 0:00:30]} Ne4 {[%emt 0:00:00]} 8. Qc2 {[%emt 0:07:30]} f5 {[%emt 0:00:00]} 9. Rd1 {[%emt 0:03:30] E19: Queen's Indian: Old Main Line with 7...Ne4 8 Qc2 Nxc3 8 Qxc3} (9. Bf4 Nxc3 10. Qxc3 Bf6 11. Rfd1 d6 12. Rac1 Qe7 13. h4 Nd7 14. Qe3 a5 15. Ne5 Bxg2 16. Kxg2 dxe5 17. dxe5 Nxe5 18. Bxe5 Bxe5 19. Qxe5 {½-½ (46) Savchenko,B (2639)-Khanin,S (2436) Voronezh 2017}) 9... d6 {[%emt 0:00:00]} 10. b3 {[%emt 0:04:30]} Nxc3 {[%emt 0:05:00]} 11. Qxc3 {[%emt 0:00:30]} Bf6 {[%emt 0:00:30]} 12. Bb2 {[%emt 0:00:30]} Nd7 {[%emt 0:03:30]} 13. Ng5 {[%emt 0:05:30]} Bxg5 {[%emt 0:04:30]} 14. Bxb7 {[%emt 0:00:30]} Rb8 {[%emt 0:00:30]} 15. Bc6 {[%emt 0:00:30]} Qe7 {[%emt 0:02:30]} 16. f4 {[%emt 0:01:30]} Bf6 {[%emt 0:00:30]} 17. Rd3 $146 {[%emt 0:00:30]} ({Predecessor:} 17. e4 fxe4 18. Bxe4 g6 19. Re1 c5 {1-0 (66) Bemporad,F (2100)-Mastrorilli,N (2012) Corsico 2009}) 17... Kh8 {[%emt 0:01:30]} 18. Re3 {[%emt 0:01:30]} Qf7 {[%emt 0:03:30]} 19. Rd1 {[%emt 0:00:30]} Rbd8 {[%emt 0:00:30]} 20. Qc2 {[%emt 0:04:30]} Nb8 {[%emt 0:03:30]} 21. Bg2 {[%emt 0:02:30]} d5 {[%emt 0:06:30]} 22. Ba3 {[%emt 0:09:30]} Rfe8 {[%emt 0:03:30]} 23. Red3 {[%emt 0:12:30]} c6 {[%emt 0:06:30]} 24. e3 {[%emt 0:01:30]} Qd7 {[%emt 0:07:30]} 25. Bf3 {[%emt 0:03:30]} Rg8 {[%emt 0:03:30]} 26. h4 {[%emt 0:02:30]} g6 {[%emt 0:01:30]} 27. Qh2 {[%emt 0:01:30]} h5 {[%emt 0:03:30]} 28. Qe2 {[%emt 0:01:30]} Rc8 {[%emt 0:01:30]} 29. Rc1 {[%emt 0:02:30]} Rc7 $14 {[%emt 0:04:30]} 30. c5 {[%emt 0:01:30]} b5 {[%emt 0:01:30]} 31. Bb4 {[%emt 0:00:30]} Rb7 {[%emt 0:10:30]} 32. Qc2 {[%emt 0:05:30]} Bd8 {[%emt 0:01:30]} 33. Ra1 {[%emt 0:01:30]} a5 {[%emt 0:00:30]} 34. Bc3 {[%emt 0:00:30]} Ra7 {[%emt 0:00:30]} 35. a4 {[%emt 0:00:30]} b4 {[%emt 0:00:00]} 36. Bb2 {[%emt 0:00:30]} Qe8 {[%emt 0:05:00]} 37. Re1 {[%emt 0:00:30]} Nd7 {[%emt 0:00:30]} 38. Rd2 {[%emt 0:00:30]} Nf6 {[%emt 0:00:30]} 39. Rde2 {[%emt 0:00:30]} Qf7 {[%emt 0:00:30]} 40. Rd2 {[%emt 0:00:00]} Qd7 {[%emt 0:30:30]} 1/2-1/2

[Event "33rd ECCC Open 2017"]
[Site "Antalya"]
[Date "2017.10.12"]
[Round "5"]
[White "Danielsen, Magnus"]
[Black "Osttveit, Martin"]
[Result "1-0"]
[ECO "C41"]
[WhiteElo "2060"]
[BlackElo "2073"]
[Annotator "NA"]
[PlyCount "79"]
[EventType "team-tourn"]
[EventCountry "TUR"]
[SourceTitle "playchess.com"]
[Source "ChessBase"]
[SourceQuality "1"]
[WhiteTeam "Valerenga"]
[BlackTeam "Oslo"]
[TimeControl "40/5400+30:1800+30"]

1. e4 {[%emt 0:00:30]} e5 {[%emt 0:01:00]} 2. Nf3 {[%emt 0:00:30]} d6 {[%emt 0:00:30]} 3. d4 {[%emt 0:00:30]} Nd7 {[%emt 0:00:30]} 4. Bc4 {[%emt 0:01:30]} c6 {[%emt 0:00:30]} 5. O-O {[%emt 0:00:30]} Be7 {[%emt 0:00:30]} 6. dxe5 {[%emt 0:01:30]} dxe5 {[%emt 0:01:30]} 7. Ng5 {[%emt 0:00:30]} Bxg5 {[%emt 0:21:30]} 8. Qh5 {[%emt 0:00:30]} Qf6 {[%emt 0:04:30]} 9. Qxg5 {[%emt 0:01:30]} Qxg5 {[%emt 0:00:30]} 10. Bxg5 {[%emt 0:00:00] C41: Philidor Defence} Ngf6 {[%emt 0:00:30]} (10... Nc5 11. f3 Be6 12. Nd2 b5 13. Be3 bxc4 14. Bxc5 Nf6 15. b3 Nd7 16. Bd6 O-O-O 17. Nxc4 Bxc4 18. bxc4 {1-0 (28) Ni,H (2704)-Zhang,P (2640) Beijing 2008}) 11. f3 {[%emt 0:00:00]} Nc5 {[%emt 0:02:30]} 12. Be3 {[%emt 0:14:30]} Be6 {[%emt 0:03:30]} 13. Nd2 {[%emt 0:01:30]} Nfd7 {[%emt 0:14:30]} 14. b4 $146 {[%emt 0:04:30]} ({Predecessor:} 14. Be2 Ke7 15. Nc4 Na4 16. Na5 Rab8 17. b3 Nab6 {1-0 (57) Munoz Santana,J (2342)-Arribas Robaina,M (2303) Balaguer 2005}) 14... Na6 {[%emt 0:05:30]} 15. Bxa6 {[%emt 0:12:30]} bxa6 {[%emt 0:00:00]} 16. Nb3 {[%emt 0:00:30]} Kd8 {[%emt 0:05:00]} 17. Rfd1 {[%emt 0:02:30]} Kc7 {[%emt 0:01:30]} 18. Rd2 {[%emt 0:10:30]} Nb6 {[%emt 0:07:30]} 19. Nc5 {[%emt 0:00:30]} Bc4 {[%emt 0:02:30]} 20. a4 {[%emt 0:05:30]} Rhd8 {[%emt 0:06:38]} 21. a5 {[%emt 0:01:30]} Rxd2 {[%emt 0:02:50]} 22. Bxd2 {[%emt 0:05:30]} Nd7 $14 {[%emt 0:06:22]} 23. Nxd7 {[%emt 0:19:02]} Kxd7 {[%emt 0:00:30]} 24. Be3 {[%emt 0:00:00]} Kc7 {[%emt 0:03:02]} 25. Rd1 {[%emt 0:00:42]} f6 {[%emt 0:01:14]} 26. Bc5 {[%emt 0:00:26]} Ba2 {[%emt 0:02:35]} 27. Kf2 {[%emt 0:01:00]} Bg8 {[%emt 0:00:48]} 28. Ke3 {[%emt 0:00:38]} Bc4 {[%emt 0:00:29]} 29. h4 {[%emt 0:01:19]} h6 {[%emt 0:03:04]} 30. g4 {[%emt 0:03:33]} Bg8 {[%emt 0:00:50]} 31. Bd6+ {[%emt 0:00:35]} Kb7 {[%emt 0:00:33]} 32. Bc5 {[%emt 0:00:31]} Kc7 {[%emt 0:00:07]} 33. Rd2 {[%emt 0:01:06]} Bc4 {[%emt 0:00:38]} 34. g5 {[%emt 0:00:18]} hxg5 {[%emt 0:02:39]} 35. hxg5 {[%emt 0:00:28]} Re8 {[%emt 0:00:59]} 36. Bxa7 {[%emt 0:02:21]} Rh8 {[%emt 0:00:32]} 37. Bb6+ {[%emt 0:01:09]} Kc8 {[%emt 0:00:14]} 38. Rd6 {[%emt 0:00:12]} fxg5 {[%emt 0:00:44]} 39. Rxc6+ {[%emt 0:00:16]} Kb8 {[%emt 0:00:37]} 40. Rxc4 {[%emt 0:00:00]} 1-0

[Event "33rd ECCC Open 2017"]
[Site "Antalya"]
[Date "2017.10.12"]
[Round "5"]
[White "Heinrich, Jan"]
[Black "Uruci, Endrit"]
[Result "1/2-1/2"]
[ECO "D60"]
[WhiteElo "1988"]
[BlackElo "2111"]
[Annotator "NA"]
[PlyCount "61"]
[EventType "team-tourn"]
[EventCountry "TUR"]
[SourceTitle "playchess.com"]
[Source "ChessBase"]
[SourceQuality "1"]
[WhiteTeam "Adare"]
[BlackTeam "Dardania"]
[TimeControl "40/5400+30:1800+30"]

1. d4 {[%emt 0:00:30]} Nf6 {[%emt 0:01:00]} 2. Bg5 {[%emt 0:00:30]} d5 {[%emt 0:00:30]} 3. Nf3 {[%emt 0:00:30]} e6 {[%emt 0:00:30]} 4. e3 {[%emt 0:00:30]} Be7 {[%emt 0:01:30]} 5. c4 {[%emt 0:00:00]} O-O {[%emt 0:01:30]} 6. Nc3 {[%emt 0:01:00]} Nbd7 {[%emt 0:00:30]} 7. Bd3 {[%emt 0:00:30]} dxc4 {[%emt 0:00:30]} 8. Bxc4 {[%emt 0:00:30]} a6 {[%emt 0:00:00]} 9. O-O {[%emt 0:00:30]} b5 {[%emt 0:00:00]} 10. Bb3 {[%emt 0:02:30]} Bb7 {[%emt 0:00:00] D60: Queen's Gambit Declined: Classical: Unusual White 7th moves} 11. Qe2 {[%emt 0:01:30]} Ne4 $146 {[%emt 0:02:00]} ({Predecessor:} 11... c5 12. Rfd1 Qb6 13. Rac1 Rfd8 14. h3 Rac8 15. Bc2 cxd4 16. exd4 Nf8 17. d5 b4 18. Na4 {0-1 (41) Rimeikis,A (2132)-Kalvaitis,S (2285) Plateliai 2016}) 12. Nxe4 {[%emt 0:05:30]} Bxe4 {[%emt 0:00:30]} 13. Bxe7 {[%emt 0:01:30]} Qxe7 {[%emt 0:00:30]} 14. Rac1 {[%emt 0:07:30]} c5 {[%emt 0:00:30]} 15. dxc5 {[%emt 0:00:30]} Nxc5 {[%emt 0:00:30]} 16. Bc2 {[%emt 0:00:30]} Rfd8 {[%emt 0:01:30]} 17. Bxe4 {[%emt 0:00:30]} Nxe4 {[%emt 0:00:00]} 18. Qc2 {[%emt 0:02:30]} Nd6 {[%emt 0:09:00]} 19. Rfd1 {[%emt 0:05:30]} Rac8 {[%emt 0:00:30]} 20. Qe2 {[%emt 0:01:30]} e5 {[%emt 0:01:30]} 21. h3 $11 {[%emt 0:06:30]} h6 {[%emt 0:02:30]} 22. b3 {[%emt 0:06:30]} Ne4 {[%emt 0:08:30]} 23. Rxd8+ {[%emt 0:03:30]} Qxd8 {[%emt 0:04:30]} 24. Rxc8 {[%emt 0:01:30]} Qxc8 {[%emt 0:00:30]} 25. Qb2 {[%emt 0:11:30]} f6 {[%emt 0:02:30]} 26. Nd2 {[%emt 0:05:30]} Nc3 {[%emt 0:04:30]} 27. b4 {[%emt 0:02:30]} Kh8 {[%emt 0:03:30]} 28. Kh2 Nd5 {[%emt 0:13:30]} 29. a3 {[%emt 0:12:00]} Nb6 {[%emt 0:06:30]} 30. Nb3 {[%emt 0:04:03]} Na4 {[%emt 0:01:30]} 31. Qd2 {[%emt 0:01:35]} 1/2-1/2

[Event "33rd ECCC Open 2017"]
[Site "Antalya"]
[Date "2017.10.12"]
[Round "5"]
[White "Kocyigit, Buse Naz"]
[Black "Sahin, Ozgun"]
[Result "1/2-1/2"]
[ECO "D05"]
[WhiteElo "1827"]
[BlackElo "2210"]
[Annotator "NA"]
[PlyCount "108"]
[EventType "team-tourn"]
[EventCountry "TUR"]
[SourceTitle "playchess.com"]
[Source "ChessBase"]
[SourceQuality "1"]
[WhiteTeam "Karaman"]
[BlackTeam "Besiktas"]
[TimeControl "40/5400+30:1800+30"]

1. d4 {[%emt 0:00:30]} c5 {[%emt 0:01:00]} 2. e3 {[%emt 0:00:30]} Nf6 {[%emt 0:00:30]} 3. Nf3 {[%emt 0:00:30]} d5 {[%emt 0:00:30]} 4. c3 {[%emt 0:00:30]} Nc6 {[%emt 0:00:30]} 5. Bd3 {[%emt 0:00:30]} Bg4 {[%emt 0:00:30]} 6. Nbd2 {[%emt 0:00:00]} e6 {[%emt 0:01:30]} 7. O-O {[%emt 0:01:00] D05: Colle System with ...e6} Bd6 {[%emt 0:00:30]} (7... cxd4 8. exd4 Bd6 9. Re1 O-O 10. Nf1 Re8 11. Bg5 h6 12. Bh4 e5 13. dxe5 Nxe5 14. Be2 Nxf3+ 15. Bxf3 Rxe1 16. Qxe1 Bxf3 17. gxf3 {½-½ (44) Golubov,S (2490)-Peralta,F (2574) Sitges 2016}) 8. dxc5 {[%emt 0:14:30]} Bxc5 {[%emt 0:00:30]} 9. e4 {[%emt 0:05:30]} O-O {[%emt 0:17:30]} 10. Qc2 {[%emt 0:06:30]} h6 {[%emt 0:08:30]} 11. exd5 $146 {[%emt 0:06:30]} ({Predecessor:} 11. h3 dxe4 12. Bxe4 Nxe4 13. hxg4 Ng5 14. Nxg5 Qxg5 {½-½ (61) Gotovusa,G (2165)-Zmijanac,D (2258) Belgrade 2003}) 11... exd5 {[%emt 0:04:30]} 12. h3 {[%emt 0:01:30]} Bd7 {[%emt 0:02:30]} 13. Nb3 {[%emt 0:04:30]} Bb6 {[%emt 0:00:30]} 14. Bf4 {[%emt 0:02:30]} Rc8 {[%emt 0:04:30]} 15. a3 {[%emt 0:10:30]} a5 {[%emt 0:06:30]} 16. Rae1 {[%emt 0:06:30]} a4 {[%emt 0:10:30]} 17. Nbd2 {[%emt 0:00:30]} Bc5 {[%emt 0:06:30]} 18. Ne5 {[%emt 0:16:50]} ({Much worse is} 18. Qxa4 Nb4 $17) 18... Nxe5 {[%emt 0:05:30]} 19. Bxe5 {[%emt 0:00:10]} b5 {[%emt 0:04:30]} 20. Qd1 {[%emt 0:04:24]} Bc6 {[%emt 0:09:07]} 21. Nf3 {[%emt 0:04:40]} Nd7 {[%emt 0:03:02]} 22. Bd4 {[%emt 0:01:52]} Bd6 {[%emt 0:01:28]} 23. Ne5 {[%emt 0:02:57]} Nxe5 {[%emt 0:05:37]} 24. Bxe5 {[%emt 0:00:30]} Bxe5 {[%emt 0:00:30]} 25. Rxe5 {[%emt 0:00:30]} Qd6 {[%emt 0:00:30]} 26. Rfe1 {[%emt 0:00:29]} Rfd8 {[%emt 0:02:08]} 27. Bf5 {[%emt 0:03:37]} Rc7 {[%emt 0:02:03]} 28. Qd4 {[%emt 0:01:38]} Kf8 {[%emt 0:01:21]} 29. Bc2 {[%emt 0:03:34]} Re8 {[%emt 0:00:47]} 30. Rxe8+ {[%emt 0:00:30]} Bxe8 {[%emt 0:00:00]} 31. Qd3 {[%emt 0:00:33]} Re7 {[%emt 0:01:00]} 32. Rd1 {[%emt 0:00:36]} Re5 {[%emt 0:00:59]} 33. Qh7 {[%emt 0:00:37]} Qf6 {[%emt 0:00:27]} 34. Bd3 {[%emt 0:00:29]} Bc6 {[%emt 0:00:46]} 35. Qh8+ {[%emt 0:00:45]} Ke7 {[%emt 0:00:01]} 36. Qb8 {[%emt 0:00:16]} Qd6 {[%emt 0:00:48]} 37. Qa7+ {[%emt 0:00:30]} Kf8 {[%emt 0:00:30]} 38. Qb6 {[%emt 0:00:28]} d4 {[%emt 0:01:09]} 39. cxd4 {[%emt 0:00:30]} Rg5 {[%emt 0:00:00]} 40. Bf1 {[%emt 0:00:00]} Kg8 {[%emt 0:01:17]} 41. Rc1 {[%emt 0:02:35]} Rg6 {[%emt 0:00:30]} 42. Qc5 {[%emt 0:08:30]} Qf4 $16 {[%emt 0:08:30]} 43. Qc3 {[%emt 0:07:43]} Bxg2 {[%emt 0:04:18]} 44. Bxg2 {[%emt 0:07:02]} Qe4 {[%emt 0:00:25]} 45. f3 {[%emt 0:03:13]} Qe2 {[%emt 0:00:30]} 46. Qc8+ {[%emt 0:00:30]} Kh7 {[%emt 0:00:30]} 47. Qc2 {[%emt 0:00:00]} Qe3+ {[%emt 0:01:03]} 48. Kh1 {[%emt 0:00:14]} Qxd4 {[%emt 0:00:28]} 49. Rd1 {[%emt 0:01:20]} Qe3 {[%emt 0:01:01]} 50. f4 {[%emt 0:02:29]} Qxf4 {[%emt 0:01:07]} 51. Be4 {[%emt 0:01:07]} f5 {[%emt 0:00:07]} 52. Bxf5 {[%emt 0:00:08]} Qf3+ {[%emt 0:00:30]} 53. Kh2 {[%emt 0:00:30]} Qg3+ {[%emt 0:00:30]} 54. Kh1 {[%emt 0:00:30]} Qf3+ {[%emt 0:00:00]} 1/2-1/2

[Event "33rd ECCC Open 2017"]
[Site "Antalya"]
[Date "2017.10.12"]
[Round "5"]
[White "Ingason, Sigurdur"]
[Black "Hajra, Driton"]
[Result "1/2-1/2"]
[ECO "E94"]
[WhiteElo "1809"]
[BlackElo "2040"]
[Annotator "NA"]
[PlyCount "128"]
[EventType "team-tourn"]
[EventCountry "TUR"]
[SourceTitle "playchess.com"]
[Source "ChessBase"]
[SourceQuality "1"]
[WhiteTeam "Viking"]
[BlackTeam "Hasan Pristina"]
[TimeControl "40/5400+30:1800+30"]

1. d4 {[%emt 0:00:30]} Nf6 {[%emt 0:01:00]} 2. c4 {[%emt 0:00:30]} g6 {[%emt 0:00:30]} 3. Nc3 {[%emt 0:00:30]} Bg7 {[%emt 0:00:30]} 4. e4 {[%emt 0:00:30]} d6 {[%emt 0:00:30]} 5. Be2 {[%emt 0:00:30]} O-O {[%emt 0:00:30]} 6. Bg5 {[%emt 0:00:00]} c6 {[%emt 0:00:30]} 7. Qd2 {[%emt 0:01:00]} Re8 {[%emt 0:01:30]} 8. Nf3 {[%emt 0:03:30]} Qc7 {[%emt 0:00:30]} 9. O-O {[%emt 0:02:30]} Nbd7 {[%emt 0:01:30]} 10. Rfe1 {[%emt 0:06:30]} e5 {[%emt 0:01:30]} 11. d5 {[%emt 0:01:30] E94: King's Indian: Classical: 6 Be2 e5 7 0-0: Various Black 7th moves} c5 {[%emt 0:05:30]} 12. a3 {[%emt 0:06:30]} b6 {[%emt 0:03:30]} 13. b4 {[%emt 0:06:30]} a6 {[%emt 0:04:30]} 14. Bf1 {[%emt 0:04:30]} Nf8 {[%emt 0:05:30]} 15. bxc5 $146 {[%emt 0:04:30]} ({Predecessor:} 15. Rab1 Bg4 16. Qd3 {½-½ (36) Wilfling,H (2168)-Schober,M (1930) St Veit 2009}) 15... bxc5 {[%emt 0:00:30]} 16. a4 {[%emt 0:06:30]} Bg4 {[%emt 0:02:30]} 17. Nh4 {[%emt 0:05:30]} Qa5 {[%emt 0:06:30]} 18. f3 {[%emt 0:05:30]} Bd7 {[%emt 0:00:30]} 19. Qc2 {[%emt 0:06:30]} Reb8 {[%emt 0:02:30]} 20. Bd2 {[%emt 0:00:30]} Qd8 {[%emt 0:00:30]} 21. g3 {[%emt 0:01:30]} Rb7 {[%emt 0:01:30]} 22. Reb1 {[%emt 0:02:30]} Rab8 {[%emt 0:00:30]} 23. Rxb7 {[%emt 0:02:30]} Rxb7 {[%emt 0:00:30]} 24. Rb1 {[%emt 0:00:30]} Qb8 {[%emt 0:00:30]} 25. Rxb7 {[%emt 0:04:30]} Qxb7 {[%emt 0:00:00]} 26. Bd3 {[%emt 0:00:30]} Ne8 {[%emt 0:02:00]} 27. Ng2 {[%emt 0:01:30]} Bf6 {[%emt 0:04:30]} 28. Ne3 {[%emt 0:03:30]} Bd8 {[%emt 0:01:30]} 29. Nb1 {[%emt 0:00:30]} Ng7 {[%emt 0:03:30]} 30. Nd1 {[%emt 0:05:38]} f5 {[%emt 0:01:30]} 31. Qb2 {[%emt 0:00:27]} Qc8 {[%emt 0:00:30]} 32. Bc2 {[%emt 0:03:34]} fxe4 {[%emt 0:01:30]} 33. fxe4 {[%emt 0:00:14]} Nh5 {[%emt 0:00:30]} 34. Nbc3 {[%emt 0:01:16]} Kg7 {[%emt 0:04:30]} 35. Nf2 {[%emt 0:00:59]} h6 {[%emt 0:01:30]} (35... Ba5 $11 {remains equal.}) 36. Bd1 {[%emt 0:00:23]} Nf6 {[%emt 0:01:30]} 37. Be3 {[%emt 0:02:51]} Ba5 {[%emt 0:01:30]} 38. Na2 {[%emt 0:01:26]} g5 {[%emt 0:07:30]} 39. Bd2 {[%emt 0:03:57]} Bc7 {[%emt 0:04:30]} 40. Bc3 {[%emt 0:00:00]} Ng6 {[%emt 0:00:30]} 41. Qd2 {[%emt 0:06:15]} Ne7 {[%emt 0:05:30]} 42. Nc1 {[%emt 0:06:30]} Neg8 {[%emt 0:04:30]} 43. Ba5 {[%emt 0:03:30]} Qd8 {[%emt 0:05:30]} 44. Bc3 {[%emt 0:01:30]} Qe8 {[%emt 0:03:30]} 45. Ba5 {[%emt 0:00:30]} Qd8 {[%emt 0:01:30]} 46. Bc3 {[%emt 0:00:30]} Ne7 {[%emt 0:00:00]} 47. Ncd3 {[%emt 0:01:30]} Nc8 {[%emt 0:01:00]} 48. a5 {[%emt 0:01:30]} Be8 {[%emt 0:03:30]} 49. Qa2 {[%emt 0:04:12]} Bg6 {[%emt 0:05:30]} 50. Bf3 {[%emt 0:00:11]} Ne7 {[%emt 0:00:30]} 51. Nc1 {[%emt 0:01:04]} Bh5 {[%emt 0:01:30]} 52. Bxh5 {[%emt 0:01:06]} Nxh5 {[%emt 0:00:30]} 53. Qd2 $14 {[%emt 0:01:25]} Ng6 {[%emt 0:00:30]} 54. Qb2 {[%emt 0:01:19]} Bxa5 {[%emt 0:09:30]} 55. Ne2 {[%emt 0:03:43]} Bxc3 {[%emt 0:02:30]} 56. Nxc3 {[%emt 0:00:12]} Qa5 {[%emt 0:01:30]} 57. Qb7+ {[%emt 0:00:46]} Kg8 {[%emt 0:00:30]} 58. Qb8+ {[%emt 0:01:42]} Nf8 {[%emt 0:00:30]} 59. Nfd1 {[%emt 0:01:08]} Nf6 {[%emt 0:01:30]} 60. Qxd6 {[%emt 0:00:33]} N8d7 {[%emt 0:03:36]} 61. Qe6+ {[%emt 0:00:13]} Kf8 {[%emt 0:00:41]} 62. d6 {[%emt 0:01:59]} Qd8 {[%emt 0:02:57]} (62... Qb4 $11) 63. Nd5 {[%emt 0:01:06]} Qe8 {[%emt 0:02:11]} 64. Qf5 {[%emt 0:01:31]} Kf7 {[%emt 0:02:27]} 1/2-1/2